bitfinex-derivatives/quotes_ETHF0:USTF0_20251203
["timestamp","ask_amount","ask_price","bid_price","bid_amount"]
[1764750819395,3.2119934,3048.2,3048.1,2.19877055]
[1764750820700,5.91946783,3048.2,3048.1,1.11327055]
[1764750820999,5.91946743,3048.2,3048.1,0.00247055]
[1764750821394,5.91946743,3048.2,3048.1,2.19877055]
[1764750821594,4.93156743,3048.2,3048.1,2.19877055]
[1764750822095,4.1998934,3048.2,3048.1,2.19877055]
[1764750822304,4.93150419,3048.2,3048.1,2.19877055]
[1764750822506,4.93150419,3048.2,3048.1,0.00247055]
[1764750822507,5.91940419,3048.2,3048.1,0.00247055]
[1764750822910,7.07669647,3048.2,3048.1,1.11327055]
[1764750823606,3.2119934,3048.2,3048.1,2.19877055]
[1764750826007,0.0041934,3048.2,3048.1,2.19877055]
[1764750828201,1.9799934,3048.2,3048.1,2.19877055]
[1764750828696,0.0041934,3048.2,3048.1,2.19877055]
[1764750832412,0.9920934,3048.2,3048.1,2.19877055]
[1764750833113,1.9799934,3048.2,3048.1,2.19877055]
[1764750833303,3.13728568,3048.2,3048.1,1.11327055]
[1764750833501,3.13728568,3048.2,3048.1,2.19877055]
[1764750833502,2.14938568,3048.2,3048.1,2.19877055]
[1764750833807,0.0041934,3048.2,3048.1,2.19877055]
[1764750834507,1.9799934,3048.2,3048.1,2.19877055]
[1764750834712,1.73576385,3048.2,3048.1,2.19877055]
[1764750835508,0.74786385,3048.2,3048.1,2.19877055]
[1764750836112,1.73576385,3048.2,3048.1,2.19877055]
[1764750836312,0.74786385,3048.2,3048.1,2.19877055]
[1764750836613,1.73576385,3048.2,3048.1,2.19877055]
[1764750836815,2.72366385,3048.2,3048.1,2.19877055]
[1764750838517,1.73576385,3048.2,3048.1,2.19877055]
[1764750839020,2.72366385,3048.2,3048.1,2.19877055]
[1764750840718,1.73576385,3048.2,3048.1,2.19877055]
[1764750840919,3.88095613,3048.2,3048.1,1.11327055]
[1764750841420,3.88095613,3048.2,3048.1,2.19877055]
[1764750841614,1.90515613,3048.2,3048.1,2.19877055]
[1764750841816,3.88095613,3048.2,3048.1,0.00247055]
[1764750842414,0.9879,3047.6,3047.5,1.7852]
[1764750842621,1.9758,3047.6,3047.5,2.8707]
[1764750843723,2.71978764,3047.6,3047.5,1.78883519]
[1764750844325,0.74398764,3047.6,3047.5,2.95453519]
[1764750844722,2.09618764,3047.6,3047.5,2.95453519]
[1764750845022,8.09618764,3047.6,3047.0,3.2078]
[1764750845221,1.3522,3046.6,3046.5,0.6072]
[1764750845423,0.74326798,3046.6,3046.2,2.2372]
[1764750845618,40.8,3046.6,3046.5,2.8444]
[1764750845822,0.00491915,3046.9,3046.5,0.6072]
[1764750846014,0.00491915,3046.9,3046.8,2.2372]
[1764750846213,0.74837404,3046.9,3046.8,2.2372]
[1764750846417,40.80491915,3046.9,3046.8,2.2372]
[1764750846619,0.00491915,3046.9,3046.8,2.2372]
[1764750852136,0.68101915,3046.9,3046.8,2.2372]
[1764750853126,1.35711915,3046.9,3046.8,2.2372]
[1764750853327,0.68101915,3046.9,3046.8,2.2372]
[1764750853622,0.6761,3046.6,3046.5,2.84777141]
[1764750853824,1.35711915,3046.9,3046.8,1.0715]
[1764750854127,2.09858428,3046.9,3046.8,1.0715]
[1764750854323,2.09858428,3046.9,3046.8,2.2372]
[1764750854521,2.09858428,3046.9,3046.5,0.61057141]
[1764750854728,1.35711915,3046.9,3046.8,1.0715]
[1764750855229,1.35711915,3046.9,3046.8,2.2372]
[1764750855531,1.35711915,3046.9,3046.8,1.0715]
[1764750856322,0.6761,3046.6,3046.5,2.84777141]
[1764750856524,1.3522,3046.6,3046.5,0.61057141]
[1764750856726,2.093111,3046.6,3045.5,3.815]
[1764750856918,4.56,3046.1,3046.0,2.9116]
[1764750857122,3.2078,3046.6,3046.0,2.9116]
[1764750857321,4.56,3046.6,3046.5,1.6787]
[1764750857522,4.56,3046.6,3046.0,0.6744]
[1764750857523,3.2078,3046.6,3046.0,2.9116]
[1764750857720,3.2078,3046.6,3046.0,2.91391145]
[1764750857925,1.3522,3046.1,3046.0,2.91391145]
[1764750858121,3.05886823,3046.1,3046.0,0.00231145]
[1764750858320,1.3522,3045.6,3045.0,1e-08]
[1764750858526,0.338,3046.5,3045.5,2.8444]
[1764750858527,1.87076823,3046.4,3045.5,2.8444]
[1764750858729,1.0079,3045.6,3045.5,2.8444]
[1764750858928,2.0972,3045.6,3045.5,1.6787]
[1764750859129,4.2157,3045.6,3045.5,2.8444]
[1764750859432,3.21154167,3045.6,3045.5,2.84798151]
[1764750859928,4.21944167,3045.6,3045.5,2.84798151]
[1764750860130,5.30874167,3045.6,3045.5,0.00358151]
[1764750860329,4.2157,3046.5,3046.0,2.8444]
[1764750860629,3.2078,3046.5,3046.4,2.2372]
[1764750860928,0.00491915,3046.9,3046.4,2.2372]
[1764750860929,40.80491915,3046.9,3046.4,2.2372]
[1764750861127,40.80491915,3046.9,3046.0,0.6072]
[1764750861128,5.9285,3046.5,3045.9,3.2078]
[1764750861330,5.93218357,3046.5,3046.0,0.6072]
[1764750862327,3.21148357,3046.5,3046.4,2.2372]
[1764750862626,4.21938357,3046.5,3046.4,2.2372]
[1764750863024,5.30868357,3046.5,3046.4,2.2372]
[1764750863335,5.93218357,3046.5,3046.0,0.6072]
[1764750863629,5.93218357,3046.5,3045.9,3.2078]
[1764750864024,2.7207,3046.0,3045.9,4.2793]
[1764750864228,2.7207,3046.0,3045.5,2.24078151]
[1764750864229,1.0079,3045.6,3045.5,2.24078151]
[1764750864422,0.6235,3046.0,3045.5,2.24078151]
[1764750864823,5.305,3045.8,3045.7,1.0715]
[1764750865026,2.7207,3046.0,3045.5,0.61078151]
[1764750865224,2.7207,3046.0,3045.9,1.0715]
[1764750865420,2.7207,3046.0,3045.9,2.2372]
[1764750865619,1.0079,3046.0,3045.9,2.2372]
[1764750865818,40.8,3046.1,3046.0,2.2372]
[1764750866029,2.0972,3046.1,3046.0,2.2372]
[1764750866533,2.0972,3046.1,3046.0,1.0715]
[1764750866727,2.0972,3046.1,3045.5,0.61078151]
[1764750866927,2.0972,3046.1,3046.0,2.2372]
[1764750866928,1.0079,3046.1,3046.0,2.2372]
[1764750867128,2.0972,3046.1,3046.0,2.2372]
[1764750867325,5.305,3046.2,3046.1,2.2372]
[1764750867627,5.305,3046.2,3046.1,1.0715]
[1764750869937,5.305,3046.2,3046.1,2.2372]
[1764750870328,5.305,3046.2,3045.5,0.61078151]
[1764750870631,2.0972,3045.6,3045.5,2.24078151]
[1764750871137,0.6235,3045.5,3044.4,3.2078]
[1764750871329,5.305,3045.2,3045.1,2.2372]
[1764750872025,0.00491915,3045.3,3045.2,2.2372]
[1764750872230,2.10211915,3045.3,3045.2,1.0715]
[1764750872534,2.10211915,3045.3,3045.2,2.2372]
[1764750872535,0.00491915,3045.3,3045.2,2.2372]
[1764750873130,0.00491915,3045.3,3045.2,1.0715]
[1764750873432,1.01281915,3045.3,3045.2,2.1281]
[1764750873633,0.00491915,3045.3,3045.2,2.1281]
[1764750873827,1.32621915,3045.3,3045.2,2.1281]
[1764750874328,0.00491915,3045.3,3045.2,2.1281]
[1764750875231,1.32621915,3045.3,3045.2,2.1281]
[1764750875436,2.41711915,3045.3,3045.2,1.0715]
[1764750876531,2.41711915,3045.3,3045.1,0.00306729]
[1764750876532,2.4715,3045.2,3045.1,0.00306729]
[1764750876735,6.42104938,3045.2,3045.1,0.00306729]
[1764750876933,1.239,3044.6,3044.5,5.7353]
[1764750877141,0.7343,3045.0,3044.5,6.3039]
[1764750877834,3.2058,3045.0,3044.9,2.5275]
[1764750878034,3.2058,3045.0,3044.9,2.53097407]
[1764750878228,3.2058,3045.0,3044.9,1.30787407]
[1764750878439,1.239,3045.0,3044.9,2.53097407]
[1764750878941,44.0078,3045.2,3045.1,2.5275]
[1764750879138,3.2078,3045.2,3045.1,2.5275]
[1764750879837,0.00491915,3045.3,3045.2,2.5275]
[1764750880337,1.24391915,3045.3,3045.2,2.5275]
[1764750880537,0.00491915,3045.3,3045.2,2.5275]
[1764750881033,1.24391915,3045.3,3045.2,2.5275]
[1764750881537,0.00491915,3045.3,3045.2,2.5275]
[1764750883138,4.4468,3046.0,3045.9,2.5275]
[1764750883341,7.15584361,3046.0,3045.9,1.3044]
[1764750884041,3.95004361,3046.0,3045.9,2.5275]
[1764750884538,5.18904361,3046.0,3045.9,2.5275]
[1764750884940,3.95004361,3046.0,3045.9,2.5275]
[1764750885243,2.47641915,3046.3,3046.2,2.5275]
[1764750885441,3.2192846,3046.3,3046.2,2.5275]
[1764750886138,3.2192846,3046.3,3046.2,1.3044]
[1764750886534,3.2192846,3046.3,3045.6,0.00491915]
[1764750886733,3.21436545,3046.2,3046.1,2.5275]
[1764750886944,3.21436545,3046.2,3046.1,1.3044]
[1764750887740,3.21436545,3046.2,3046.1,2.5275]
[1764750888536,0.74286545,3046.2,3046.1,2.5275]
[1764750888832,1.239,3045.9,3045.8,4.5122]
[1764750889032,0.00491915,3046.3,3045.8,5.7353]
[1764750889228,0.00491915,3046.3,3046.1,1.3044]
[1764750889229,3.21420207,3046.2,3046.1,1.3044]
[1764750889434,3.21420207,3046.2,3046.1,2.5275]
[1764750890242,3.21420207,3046.2,3046.1,1.3044]
[1764750890446,3.21420207,3046.2,3046.1,2.5275]
[1764750891836,3.21420207,3046.2,3046.1,1.3044]
[1764750893139,0.74270207,3046.2,3045.7,3.2078]
[1764750893349,2.4715,3046.2,3046.1,2.5275]
[1764750893547,3.21294982,3046.2,3046.1,2.5275]
[1764750893736,3.21294982,3046.2,3045.7,3.2078]
[1764750893941,1.239,3045.8,3045.7,5.7353]
[1764750894146,0.00491915,3046.3,3045.7,5.7353]
[1764750894341,0.74132046,3046.2,3045.7,5.7353]
[1764750894550,3.21282046,3046.1,3046.0,1.3044]
[1764750894840,3.21282046,3046.1,3046.0,2.5275]
[1764750895344,3.21282046,3046.1,3046.0,1.3044]
[1764750896145,3.21282046,3046.1,3046.0,2.5275]
[1764750896336,3.21282046,3046.1,3045.7,3.2078]
[1764750896539,2.4715,3045.8,3045.7,2.5275]
[1764750896743,1.98032046,3045.8,3045.7,2.5275]
[1764750897155,1.239,3045.8,3045.7,2.5275]
[1764750898143,3.2058,3046.0,3045.9,2.5275]
[1764750898345,3.94656681,3046.0,3045.9,2.5275]
[1764750898543,1.97976681,3046.0,3045.9,2.5275]
[1764750898743,0.74076681,3046.0,3045.9,2.5275]
[1764750898943,4.4468,3046.2,3046.1,2.5275]
[1764750899151,5.18746528,3046.2,3046.1,2.5275]
[1764750899449,6.41996528,3046.2,3046.1,2.5275]
[1764750901343,0.74066528,3046.2,3046.1,2.5275]
[1764750901545,0.00491915,3046.3,3046.2,2.5275]
[1764750904451,2.47421915,3046.3,3046.2,1.3044]
[1764750904660,3.2146973,3046.3,3045.7,3.2078]
[1764750904851,2.47421915,3046.3,3046.2,1.1099]
[1764750905151,3.21470903,3046.3,3046.2,1.1099]
[1764750905353,3.21470903,3046.3,3046.2,2.3524]
[1764750905550,1.98440903,3046.3,3046.2,2.3524]
[1764750906152,3.21470903,3046.3,3046.2,2.3524]
[1764750906354,0.74540903,3046.3,3046.2,2.3524]
[1764750907054,0.00491915,3046.3,3046.2,2.3524]
[1764750908355,4.3687,3047.4,3047.3,1.1099]
[1764750908560,6.34035913,3047.4,3047.3,1.1099]
[1764750908757,6.34035913,3047.4,3046.5,0.7017]
[1764750908959,3.13255913,3047.3,3047.2,1.1099]
[1764750909159,3.13492849,3047.3,3047.2,1.11284073]
[1764750909753,3.13492849,3047.3,3047.2,0.00294073]
[1764750909958,3.13492849,3047.3,3047.2,2.35534073]
[1764750910257,3.13492849,3047.3,3047.2,1.11284073]
[1764750910557,0.00236936,3047.3,3047.2,2.35534073]
[1764750911360,0.00491915,3047.6,3047.5,3.0541]
[1764750911560,0.00491915,3047.6,3047.5,6.2619]
[1764750912355,0.0085967,3047.6,3047.5,6.2619]
[1764750915256,1.1609,3048.2,3048.1,2.3524]
[1764750915465,3.0794,3048.5,3048.4,1.1099]
[1764750915663,3.82466758,3048.5,3048.4,1.1099]
[1764750915962,1.1609,3048.1,3048.0,3.0541]
[1764750916159,1.8491,3048.5,3048.4,1.1099]
[1764750916354,3.0794,3048.5,3048.4,1.1099]
[1764750916560,1.1609,3048.0,3047.9,4.3177]
[1764750916761,1.1609,3048.0,3047.9,5.5602]
[1764750916960,2.3912,3048.0,3047.9,5.5602]
[1764750917264,1.1609,3048.0,3047.9,5.5602]
[1764750917853,3.0794,3048.0,3047.5,3.9095]
[1764750918060,3.0794,3048.0,3047.9,1.1099]
[1764750918260,3.0794,3048.0,3047.5,3.9095]
[1764750918464,3.0794,3048.0,3047.9,1.1099]
[1764750920661,5.599,3048.2,3048.1,2.3524]
[1764750921565,4.3687,3048.2,3048.1,2.3524]
[1764750922366,5.599,3048.2,3048.1,2.3524]
[1764750923168,5.599,3048.2,3048.1,1.1099]
[1764750923660,4.3687,3048.2,3048.1,2.3524]
[1764750924065,3.2078,3048.2,3048.1,2.3524]
[1764750925263,2.39393523,3048.5,3048.4,2.3524]
[1764750925463,1.16363523,3048.5,3048.4,2.3524]
[1764750926470,0.00273523,3048.5,3048.4,2.3524]
[1764750926876,1.16363523,3048.5,3048.4,2.3524]
[1764750927374,0.00273523,3048.5,3048.4,2.3524]
[1764750927573,3.2078,3048.7,3048.6,2.3524]
[1764750927775,4.3687,3048.7,3048.6,2.3524]
[1764750927973,3.2078,3048.7,3048.6,2.3524]
[1764750928682,3.21010878,3048.7,3048.6,2.3524]
[1764750929572,0.00491915,3048.8,3048.7,2.3524]
[1764750930580,0.0091117,3048.8,3048.7,2.3524]
[1764750932482,1.1700117,3048.8,3048.7,2.3524]
[1764750933182,0.0091117,3048.8,3048.7,2.3524]
[1764750937876,3.2078,3049.2,3049.1,2.081]
[1764750938082,4.2841,3049.7,3049.6,2.081]
[1764750938289,5.02622765,3049.7,3049.6,2.081]
[1764750938790,6.03472765,3049.7,3049.6,2.081]
[1764750939085,6.03761696,3049.7,3049.6,1.04238102]
[1764750939793,6.03761696,3049.7,3049.6,0.00238102]
[1764750940488,7.19455737,3049.7,3049.6,0.00238102]
[1764750942795,6.18605737,3049.7,3049.6,2.08338102]
[1764750943291,7.19455737,3049.7,3049.6,2.08338102]
[1764750943695,7.19455737,3049.7,3049.6,1.04238102]
[1764750943996,7.19455737,3049.7,3049.6,2.08338102]
[1764750944391,6.03761696,3049.7,3049.6,2.08338102]
[1764750945393,6.03761696,3049.7,3049.6,1.04238102]
[1764750946094,6.03761696,3049.7,3049.6,2.08338102]
[1764750946495,6.03761696,3049.7,3049.6,1.04238102]
[1764750947186,6.03761696,3049.7,3049.6,2.08338102]
[1764750948190,6.03761696,3049.7,3049.6,1.04238102]
[1764750949096,6.03761696,3049.7,3049.6,0.00238102]
[1764750949491,6.03761696,3049.7,3049.6,1.04238102]
[1764750950593,6.03761696,3049.7,3049.6,0.00238102]
[1764750951395,6.03761696,3049.7,3049.6,1.04238102]
[1764750951595,6.03761696,3049.7,3049.6,2.08338102]
[1764750951793,6.03761696,3049.7,3049.6,1.04238102]
[1764750951997,6.03761696,3049.7,3049.6,2.08338102]
[1764750953696,6.03761696,3049.7,3049.6,1.04238102]
[1764750955997,6.03761696,3049.7,3049.6,2.08338102]
[1764750956796,3.95281696,3049.7,3049.6,2.08338102]
[1764750956991,5.02911696,3049.7,3049.6,2.08338102]
[1764750957194,3.95281696,3049.7,3049.6,2.08338102]
[1764750958603,0.74501696,3049.7,3049.6,2.08338102]
[1764750961500,1e-08,3050.0,3049.9,2.081]
[1764750961905,1.07630001,3050.0,3049.9,2.081]
[1764750962407,2.08480001,3050.0,3049.9,2.081]
[1764750962603,2.08765047,3050.0,3049.9,2.081]
[1764750963005,2.66645047,3050.0,3049.9,2.081]
[1764750965209,1.07915047,3050.0,3049.9,2.081]
[1764750965504,1.01745047,3050.0,3049.9,2.081]
[1764750966102,2.11395047,3050.0,3049.9,2.081]
[1764750967706,2.69275047,3050.0,3049.9,2.081]
[1764750969307,2.1111,3049.7,3049.6,0.00238102]
[1764750969510,3.26750041,3049.7,3049.6,0.00238102]
[1764750969804,6.47530041,3049.7,3049.6,0.00238102]
[1764750970409,6.47530041,3049.7,3049.6,2.02448102]
[1764750970612,6.47530041,3049.7,3049.6,1.01938102]
[1764750972806,6.47530041,3049.7,3049.6,0.00238102]
[1764750973012,6.47530041,3049.7,3049.6,1.01938102]
[1764750973407,6.47530041,3049.7,3049.6,0.00238102]
[1764750973609,7.21458628,3049.7,3049.6,0.00238102]
[1764750974910,2.1111,3048.9,3048.8,1.017]
[1764750975107,3.26750041,3048.9,3048.8,2.0221]
[1764750976109,3.26750041,3048.9,3048.8,2.02584776]
[1764750977713,2.1111,3048.9,3048.8,2.02584776]
[1764750980912,1.0146,3048.9,3048.8,2.02584776]
[1764750981615,2.1111,3049.3,3049.2,2.0221]
[1764750981915,2.84881866,3049.3,3049.2,2.0221]
[1764750982114,2.84881866,3049.3,3049.2,1.017]
[1764750982514,2.84881866,3049.3,3049.2,2.0221]
[1764750983506,2.84881866,3049.3,3049.2,1.017]
[1764750983712,2.1111,3049.1,3049.0,5.2299]
[1764750983910,2.1111,3049.3,3049.2,2.0221]
[1764750984521,1.0146,3049.3,3049.2,2.0221]
[1764750985616,2.6899,3049.5,3049.4,2.0221]
[1764750985917,3.42754219,3049.5,3049.4,2.0221]
[1764750987311,1.75224219,3049.5,3049.4,2.0221]
[1764750987506,1.0146,3049.5,3049.4,2.0221]
[1764750987712,5.3189,3049.7,3049.6,2.0221]
[1764750987915,6.05657694,3049.7,3049.6,2.0221]
[1764750988120,6.05657694,3049.7,3049.6,1.017]
[1764750990217,6.05657694,3049.7,3049.2,1.18094]
[1764750990218,1.0146,3049.3,3049.2,1.18094]
[1764750990423,1.0146,3049.3,3049.2,2.18604]
[1764750992918,3.26750041,3049.6,3049.5,1.017]
[1764750993118,2.1111,3049.6,3049.5,2.0221]
[1764750993423,1.0146,3049.6,3049.5,2.0221]
[1764750993624,2.0413,3049.6,3049.5,2.0221]
[1764750994725,1.0146,3049.6,3049.5,2.0221]
[1764750994921,2.0413,3049.6,3049.5,2.0221]
[1764750995428,1.0146,3049.6,3049.5,2.0221]
[1764750995621,2.0413,3049.6,3049.5,2.0221]
[1764750996128,0.89045047,3050.0,3049.9,1.7265]
[1764750996328,1.62898595,3050.0,3049.9,1.7265]
[1764750997527,0.89045047,3050.0,3049.9,1.7265]
[1764750999733,1.82545047,3050.0,3049.9,1.7265]
[1764750999929,0.89045047,3050.0,3049.9,1.7265]
[1764751000825,0.89045047,3050.0,3049.9,1.8904]
[1764751001421,2.37255047,3050.0,3049.5,0.2907]
[1764751001625,1.8226,3049.6,3049.5,0.8587]
[1764751002531,1.8226,3049.6,3049.5,1.7265]
[1764751002719,1.8226,3049.6,3049.5,0.8587]
[1764751002920,1.8226,3049.6,3049.5,1.7265]
[1764751003330,1.8226,3049.6,3049.5,0.8587]
[1764751003628,2.3697,3049.5,3049.4,5.09823]
[1764751004938,2.3697,3049.5,3049.4,1.89043]
[1764751005535,2.3697,3049.5,3049.4,0.16393]
[1764751005837,3.55255628,3049.5,3049.4,0.16393]
[1764751007437,2.3697,3049.5,3049.4,0.16393]
[1764751007829,1.8226,3049.3,3049.2,3.2078]
[1764751008034,1.8226,3048.9,3048.8,4.93804776]
[1764751011145,0.8876,3048.9,3048.8,4.93804776]
[1764751012042,0.8876,3049.0,3048.9,1.7265]
[1764751012848,2.3697,3049.0,3048.9,1.7265]
[1764751014044,2.3697,3049.0,3048.9,0.8587]
[1764751016446,0.8876,3048.9,3048.8,4.93804776]
[1764751016946,1.8226,3048.9,3048.8,4.93804776]
[1764751017449,1.8226,3048.9,3048.8,3.21154776]
[1764751018141,1.8226,3048.6,3048.5,0.00491915]
[1764751018334,6.95066846,3048.6,3048.5,0.00491915]
[1764751018532,0.8876,3048.0,3047.9,4.9343]
[1764751019148,0.8876,3048.0,3047.9,4.93751864]
[1764751019646,1.82751915,3048.3,3048.2,1.7265]
[1764751020346,1.82751915,3048.3,3048.2,0.8587]
[1764751020951,1.82751915,3048.3,3048.2,1.7265]
[1764751021444,0.00491915,3048.3,3048.2,1.7265]
[1764751021649,0.00491915,3048.3,3048.2,1.8905]
[1764751022041,1e-08,3048.3,3048.2,1.8905]
[1764751023949,1e-08,3048.3,3048.2,3.07335628]
[1764751024835,0.8876,3049.0,3048.9,1.7381]
[1764751025240,3.2078,3049.4,3049.3,0.8199]
[1764751025449,5.57959231,3049.4,3048.8,0.16396]
[1764751025636,4.8438,3049.4,3048.8,0.16396]
[1764751025839,4.84871915,3049.4,3048.8,0.16396]
[1764751026339,0.785,3048.9,3048.8,1.86326]
[1764751027250,3.21271915,3049.4,3048.8,1.86326]
[1764751028046,0.785,3048.9,3048.8,1.86326]
[1764751029546,3.21271915,3049.4,3048.8,1.86326]
[1764751029748,4.84871915,3049.4,3049.3,1.6993]
[1764751029947,5.58439595,3049.4,3048.6,3.2078]
[1764751030250,4.84871915,3049.4,3048.6,3.2078]
[1764751031350,0.785,3049.1,3049.0,1.86325]
[1764751032555,4.84871915,3049.4,3049.3,1.6993]
[1764751033453,0.00491915,3049.4,3049.3,1.6993]
[1764751033647,1e-08,3049.4,3049.3,1.6993]
[1764751035960,1.63600001,3049.4,3049.3,1.6993]
[1764751037162,1.63600001,3049.4,3049.3,0.8199]
[1764751037958,1.636,3049.3,3049.2,0.98384]
[1764751038160,1.636,3049.3,3049.2,0.16394]
[1764751038560,1.636,3049.3,3049.2,0.98384]
[1764751038764,1.636,3049.3,3049.2,1.86324]
[1764751038961,1.636,3049.1,3049.0,4.9071]
[1764751039962,1.636,3049.1,3049.0,3.2078]
[1764751040163,1.636,3049.1,3049.0,4.0277]
[1764751040359,1e-08,3049.4,3049.0,4.5961]
[1764751040963,0.785,3049.1,3049.0,5.416]
[1764751041958,1e-08,3049.4,3049.0,5.416]
[1764751042164,1e-08,3049.4,3049.0,3.7167]
[1764751042870,1e-08,3049.4,3049.1,0.16395]
[1764751043658,1.636,3049.2,3049.1,1.86325]
[1764751045954,1.636,3049.2,3049.1,0.98385]
[1764751046160,1.636,3049.1,3049.0,3.2078]
[1764751050865,1.636,3049.1,3049.0,4.0277]
[1764751051070,1.636,3048.7,3048.6,1.86327]
[1764751051565,2.1287,3049.0,3048.9,1.6993]
[1764751051865,4.39065629,3049.4,3048.9,1.6993]
[1764751052062,2.37249343,3049.3,3049.2,0.8199]
[1764751052370,1.52149343,3049.3,3049.2,1.6993]
[1764751052565,3.99280001,3049.4,3049.3,1.6993]
[1764751052767,3.94449324,3049.4,3049.3,1.6993]
[1764751053172,1.52169324,3049.4,3049.3,1.6993]
[1764751053375,1e-08,3049.4,3049.3,1.6993]
[1764751053672,1e-08,3049.4,3049.3,4.0872]
[1764751053874,1.56280001,3049.4,3049.3,4.8919]
[1764751054865,0.78080001,3049.4,3049.3,4.8919]
[1764751055276,1e-08,3049.4,3049.3,3.2078]
[1764751056673,1e-08,3049.4,3049.3,3.37174]
[1764751058785,1e-08,3049.4,3049.3,4.52845406]
[1764751061275,1.54160001,3049.4,3048.9,3.2078]
[1764751061481,1.54160001,3049.4,3048.9,3.9762]
[1764751061482,2.0022,3049.0,3048.9,3.9762]
[1764751061779,2.0022,3049.0,3048.9,3.2078]
[1764751063775,0.7788,3049.0,3048.9,4.746]
[1764751064376,2.69831406,3049.3,3049.2,1.5382]
[1764751064580,0.7788,3049.0,3048.9,4.746]
[1764751064782,1.5416,3049.0,3048.9,4.746]
[1764751064982,2.0022,3049.0,3048.9,4.746]
[1764751067782,3.15891406,3049.0,3048.9,4.746]
[1764751068389,3.15891406,3049.0,3048.9,3.9762]
[1764751069292,3.15891406,3049.0,3048.9,4.746]
[1764751070392,3.15891406,3049.0,3048.9,1.5382]
[1764751070793,3.15891406,3049.0,3048.9,0.7684]
[1764751071091,3.15891406,3049.0,3048.9,1.5382]
[1764751071393,0.7788,3049.0,3048.9,1.5382]
[1764751071586,2.69831406,3049.3,3049.2,0.7684]
[1764751071787,3.43277546,3049.3,3049.2,0.7684]
[1764751072293,2.2760614,3049.3,3049.2,1.5382]
[1764751073685,3.43277546,3049.3,3049.2,1.5382]
[1764751073888,3.43277546,3049.3,3049.2,0.7684]
[1764751076696,3.43277546,3049.3,3049.2,1.5382]
[1764751077198,2.69831406,3049.3,3049.2,1.5382]
[1764751077495,1.5416,3049.3,3049.2,1.5382]
[1764751077897,0.7788,3049.3,3049.2,4.746]
[1764751078192,1e-08,3049.4,3049.2,3.2078]
[1764751078798,0.7788,3049.3,3049.2,4.746]
[1764751079295,1e-08,3049.4,3049.2,3.2078]
[1764751079500,1e-08,3049.4,3049.3,0.16394]
[1764751080292,1.5416,3049.9,3049.8,0.7698]
[1764751080498,2.27185208,3049.9,3049.8,1.5382]
[1764751080695,1.5416,3049.9,3049.8,1.5382]
[1764751081201,0.00285046,3050.0,3049.9,1.5382]
[1764751081400,1.54445046,3050.0,3049.9,1.5382]
[1764751081988,2.00505046,3050.0,3049.9,1.5382]
[1764751091507,1.2538,3051.0,3050.9,0.7322]
[1764751091705,4.001,3051.3,3051.2,1.5369]
[1764751092113,1.5474,3051.2,3051.1,0.89604]
[1764751092615,1.55010754,3051.2,3051.1,1.70394733]
[1764751095704,0.79590754,3051.2,3051.1,1.70394733]
[1764751096105,0.00270754,3051.2,3051.1,1.70394733]
[1764751096308,1.55010754,3051.2,3051.1,1.70394733]
[1764751099505,0.79590754,3051.2,3051.1,1.70394733]
[1764751101410,0.79590754,3051.2,3051.1,4.91174733]
[1764751102906,1.55010754,3051.2,3051.1,4.91174733]
[1764751104915,0.79590754,3051.2,3051.1,4.91174733]
[1764751105713,0.00270754,3051.2,3051.1,4.91174733]
[1764751105913,2.01125161,3051.5,3051.4,1.5369]
[1764751106709,1.5474,3051.2,3051.1,4.91666648]
[1764751106919,1.55121456,3051.2,3051.1,4.91666648]
[1764751109416,1.55121456,3051.2,3051.1,4.11196648]
[1764751109817,1.55121456,3051.2,3051.1,3.37976648]
[1764751110217,1.55121456,3051.2,3051.1,0.90416648]
[1764751110417,1.55121456,3051.2,3051.1,1.70886648]
[1764751111221,1.55121456,3051.2,3051.1,0.90416648]
[1764751113114,1.55121456,3051.2,3051.1,4.91666648]
[1764751114219,1.55121456,3051.2,3051.1,1.70886648]
[1764751114424,1.55121456,3051.2,3051.1,0.17196648]
[1764751115026,1.55121456,3051.2,3051.1,0.96326648]
[1764751115225,1.55121456,3051.2,3051.1,1.76256648]
[1764751116529,1.55121456,3051.2,3051.1,0.96326648]
[1764751116722,1.55121456,3051.2,3051.1,0.00812648]
[1764751117020,1.55121456,3051.2,3051.1,0.81512648]
[1764751117327,0.00381456,3051.2,3051.1,4.76082648]
[1764751117830,0.75901456,3051.2,3051.1,4.76082648]
[1764751119326,0.00381456,3051.2,3051.1,4.92466648]
[1764751119530,3.67165161,3051.5,3051.4,1.70872]
[1764751119531,0.75845161,3051.5,3051.4,1.70872]
[1764751119729,1.96625161,3051.5,3051.4,1.70872]
[1764751120030,1.96625161,3051.5,3051.4,0.97082]
[1764751120528,1.96931307,3051.5,3051.4,0.97082]
[1764751121821,2.69588244,3051.5,3051.4,0.97082]
[1764751124232,2.69588244,3051.5,3051.4,0.16382]
[1764751124623,1.20808244,3051.5,3051.3,3.2078]
[1764751124829,1.4878,3051.2,3051.1,0.00812648]
[1764751125133,2.21436937,3051.2,3051.1,0.00812648]
[1764751125431,2.21436937,3051.2,3051.1,0.81512648]
[1764751125926,2.21436937,3051.2,3051.1,0.00812648]
[1764751127232,3.39599839,3051.2,3051.1,0.00812648]
[1764751129819,6.60379839,3051.2,3051.1,0.00812648]
[1764751133132,1.963,3050.5,3050.4,4.91658]
[1764751134128,1.963,3050.5,3050.4,4.91926348]
[1764751135629,1.963,3050.5,3050.4,3.21048348]
[1764751135936,1.963,3050.5,3050.4,0.00268348]
[1764751138731,1.963,3050.5,3050.1,0.00491915]
[1764751138732,1.4878,3050.2,3050.1,0.00491915]
[1764751138925,2.66942902,3050.2,3050.1,0.00491915]
[1764751139431,1.4878,3049.4,3049.3,0.807]
[1764751139730,4.6956,3049.9,3049.8,1.5449]
[1764751139930,4.6956,3049.9,3049.8,0.807]
[1764751140526,4.6956,3049.9,3049.8,1.5449]
[1764751141132,3.963,3049.9,3049.8,1.5449]
[1764751141342,1.49271915,3050.2,3050.1,0.807]
[1764751141836,1.49271915,3050.2,3049.7,3.2078]
[1764751142039,0.7552,3049.8,3049.7,4.7527]